Cogmind - Beta 14 @@@ ROGUE MODE // 2024.09.12 @ 20:50:14 Player: rice Result: Destroyed by G-34 Mercenary with Small Laser Performance ------------- Evolutions (0) 0 Regions Visited (2) 400 Robots Destroyed (29) 145 Value Destroyed (515) 515 Prototype IDs (2) 40 Alien Tech Used (0) 0 Bonus (0) 0 TOTAL SCORE: 1100 Bonus ------- None Cogmind --------- Core Integrity 0/250 Matter 203/300 Energy 100/100 System Corruption 5% Temperature Cool (15) Movement Core (350) Ox6 Location -10/Mines Parts ------- > --- POWER (1) -------- (None) > --- PROPULSION (2) --- (None) > --- UTILITY (2) ------ Large Storage Unit > --- WEAPON (2) ------- Light Assault Rifle > --- INVENTORY (15) --- Light Treads Light Treads Heat Sink Improved Heat Sink Compact Matter Pod (150) Seismic Detector Light Armor Plating Plasma Cutter Peak State ------------ > --- POWER ------------ Ion Engine > --- PROPULSION ------- Light Treads Light Treads > --- UTILITY ---------- Improved Heat Sink Medium Storage Unit > --- WEAPON ----------- Heavy EM Pulse Gun Light Assault Rifle > --- INVENTORY -------- Ion Engine Light Nuclear Core Light Treads Light Treads Light Treads Light Treads Heat Sink Light Armor Plating Grenade Launcher Plasma Cutter [Rating: 11] Favorites ----------- Power Ion Engine Engine Ion Engine Propulsion Light Treads Treads Light Treads Utility Improved Heat Sink Device Improved Heat Sink Storage Medium Storage Unit Weapon Assault Rifle Energy Gun Heavy EM Pulse Gun Ballistic Gun Assault Rifle Launcher Grenade Launcher Build | -11 -10 -10 ------- Run | Yrd Mat Min Slots Evolved . | . . . Power . | . . . Propulsion . | . . . Utility . | . . . Weapon . | . . . Parts Attached 23 | 6 11 6 Power 4 | 1 1 2 Engine 4 | 1 1 2 Core . | . . . Reactor . | . . . Propulsion 5 | 2 1 2 Treads 5 | 2 1 2 Leg . | . . . Wheel . | . . . Hover . | . . . Flight . | . . . Utility 5 | 1 4 . Device 2 | . 2 . Storage 3 | 1 2 . Processor . | . . . Hackware . | . . . Protection . | . . . Artifact . | . . . Weapon 9 | 2 5 2 Energy Gun 3 | . 3 . Energy Cannon . | . . . Ballistic Gun 5 | 2 2 1 Ballistic Cannon . | . . . Launcher 1 | . . 1 Special Weapon . | . . . Impact Weapon . | . . . Slashing Weapon . | . . . Piercing Weapon . | . . . Special Melee Weapon . | . . . Unidentified Prototypes . | . . . Parts Lost 12 | . 2 10 Power 3 | . . 3 Propulsion 4 | . . 4 Utility 1 | . . 1 Weapon 4 | . 2 2 Highest Loss Streak 7 | . 1 7 To Critical Strikes . | . . . Average Slot Usage (%) 97 | . 96 98 Engine 13 | . 13 14 Treads 27 | . 28 27 Device 12 | . 11 14 Storage 14 | . 14 14 Energy Gun 8 | . 7 13 Ballistic Gun 17 | . 20 8 Launcher 1 | . . 6 Peak Build Rating 11 | 6 11 11 Average Rating 9 | 4 9 10 On Entrance 5 | . 6 11 Naked Turns . | . . . Heaviest Build 32 | 14 30 32 Greatest Support 40 | 40 40 40 Greatest Overweight (x) 8 | . . 8 Average Overweight (x) . | . . . Largest Inventory Capacity 15 | 8 15 15 Average Capacity 10 | 7 9 15 Most Carried 11 | 2 10 11 Average Carried 7 | 1 7 9 Final Capacity 15 | 8 15 15 Final Carried 10 | 2 10 8 Class Distribution -------------------- 100% | Mutant Dominant Class ---------------- Mutant | -10/Materials Mutant | -10/Mines Resources | -11 -10 -10 ----------- Run | Yrd Mat Min Matter Collected 665 | 216 313 136 Remotely . | . . . Salvage Created 807 | . 502 305 Parts 66 | . 34 32 Haulers Intercepted 2 | . 2 . Recyclers Shooed . | . . . Parts Field Recycled . | . . . Retrieved Matter . | . . . Parts Self-Destructed . | . . . Prevented . | . . . Kills | -11 -10 -10 ------- Run | Yrd Mat Min Combat Hostiles Destroyed 36 | . 11 25 Guns 15 | . 11 4 AOE 21 | . . 21 Classes Destroyed 8 | . 5 3 Worker 2 | . 1 1 Builder 1 | . . 1 Tunneler 1 | . . 1 Hauler 2 | . 2 . Watcher 1 | . 1 . Swarmer 14 | . 5 9 Grunt 8 | . 6 2 Assembled 14 | . . 14 Best Kill Streak 14 | . 5 14 Combat Bots Only 14 | . 3 14 Max Kills in Single Turn 4 | . 1 4 Gunslinging . | . . . Exploded 4 | . . 4 Melee . | . . . Uniques/NPCs Destroyed . | . . . Combat | -11 -10 -10 -------- Run | Yrd Mat Min Hostile Shots Fired 147 | . 62 85 Missed 42 | . 19 23 Damage Taken 1581 | . 514 1067 Core 257 | . 67 190 Absorbed by Shields . | . . . Regen/Repaired (Parts) 139 | . 139 . Core Remaining (%) 100 | 100 . . Volleys Fired 82 | . 55 27 Largest 2 | . 2 2 Hottest 65 | . 65 65 Shots Fired 149 | . 108 41 Gun 135 | . 108 27 Cannon . | . . . Launcher 14 | . . 14 Special . | . . . Kinetic 91 | . 76 15 Thermal . | . . . Explosive 14 | . . 14 Electromagnetic 44 | . 32 12 Robot Hit Streak 8 | . 8 7 Robot Miss Streak 6 | . 6 3 Penetration Max . | . . . Secondary Targets 2 | . 1 1 Max Gunslinging Chain 1 | . 1 1 Shots Hit Robots 83 | . 61 22 Core Hits 78 | . 25 53 Critical Kills . | . . . Critical Parts Destroyed . | . . . Critical Strikes . | . . . Melee Attacks . | . . . Impact . | . . . Slashing . | . . . Piercing . | . . . Sneak Attacks . | . . . Combat Hostiles . | . . . Follow-up Attacks . | . . . Damage Inflicted 2378 | . 919 1459 Guns 980 | . 782 198 Cannons . | . . . Explosions 1376 | . 130 1246 Melee . | . . . Ramming 22 | . 7 15 Kinetic 589 | . 522 67 Thermal 161 | . 130 31 Explosive 1215 | . . 1215 Electromagnetic 391 | . 260 131 Impact . | . . . Slashing . | . . . Piercing . | . . . Highest Corruption 5 | . . 5 Average Corruption 5 | . . 5 Corruption Purged . | . . . Corruption Blocked . | . . . Effects 1 | . . 1 Heat Flow Errors 1 | . . 1 Overload Shots . | . . . Overflow Damage 56 | . 13 43 Projectiles . | . . . Explosions 56 | . 13 43 Melee . | . . . Knockbacks . | . . . Impact . | . . . Kinetic . | . . . Secondary . | . . . Self-Inflicted Damage 356 | . 34 322 Shots 13 | . 1 12 Rammed 5 | . 4 1 Targets Rammed 5 | . 4 1 Kicked . | . . . Crushed . | . . . Highest Temperature 155 | . 20 155 Average Temperature 31 | . 6 49 Received Heat Transfer 451 | . 210 241 Siege Activations . | . . . Robots Corrupted 1 | . 1 . Combat Hostiles . | . . . Parts Fried . | . . . Impact Corruptions . | . . . Robots Melted . | . . . Combat Hostiles . | . . . Parts Melted . | . . . Heat Transferred 250 | . 200 50 Parts Sabotaged . | . . . Parts Stolen . | . . . Parts Stripped . | . . . Power Chain Reactions 3 | . 2 1 Alert | -11 -10 -10 ------- Run | Yrd Mat Min Peak Influence 373 | . 238 373 Initial . | . . . Average 80 | . 50 187 Maximum Alert Level 1 | . 1 1 Low Security (%) 91 | 100 93 82 Level 1 8 | . 6 17 Level 2 . | . . . Level 3 . | . . . Level 4 . | . . . Level 5 . | . . . High Security . | . . . Max Security . | . . . Squads Dispatched . | . . . Investigation . | . . . Extermination . | . . . Reinforcement . | . . . Assault . | . . . Garrison . | . . . Intercept . | . . . Searches Triggered . | . . . Construction Impeded . | . . . Haulers Reinforced . | . . . Active Scanning Responses . | . . . Cargo Convoy Interrupts . | . . . Stealth | -11 -10 -10 --------- Run | Yrd Mat Min Distress Signals 4 | . 4 . Communications Jammed . | . . . Distress Signals . | . . . Times Spotted 59 | . 28 31 Peak Tracking Total 15 | . 7 15 Tactical Retreats 5 | . 3 2 Traps | -11 -10 -10 ------- Run | Yrd Mat Min Traps Triggered . | . . . Indirectly . | . . . Trap Hack Attempts . | . . . Triggered . | . . . Disarmed 6 | . 6 . Reprogrammed . | . . . Reused . | . . . Traps Extracted . | . . . Installed . | . . . Triggered . | . . . Machines | -11 -10 -10 ---------- Run | Yrd Mat Min Machines Disabled 3 | . . 3 Max in Single Turn 3 | . . 3 Machines Repaired . | . . . Machines Dismantled . | . . . Machines Sabotaged . | . . . Overloaded Fab Kills . | . . . Hacking | -11 -10 -10 --------- Run | Yrd Mat Min Machines Accessed 9 | . 9 . Terminals 8 | . 8 . Fabricators . | . . . Repair Stations 1 | . 1 . Recycling Units . | . . . Scanalyzers . | . . . Garrison Access . | . . . Total Hacks 33 | . 33 . Successful 18 | . 18 . Failed 15 | . 15 . Catastrophic 1 | . 1 . Database Lockouts . | . . . Manual 16 | . 16 . Terminals 24 | . 24 . Fabricators . | . . . Repair Stations 9 | . 9 . Recycling Units . | . . . Scanalyzers . | . . . Garrison Access . | . . . Terminal Hacks 7 | . 7 . Prototype ID Bank 1 | . 1 . Branch Access Points 1 | . 1 . Unreport Threat 2 | . 2 . Locate Traps 1 | . 1 . Disarm Traps 1 | . 1 . Registered Prototypes 1 | . 1 . Fabricator Hacks . | . . . Repair Station Hacks 7 | . 7 . Scan Component 4 | . 4 . Repair 3 | . 3 . Recycling Unit Hacks . | . . . Scanalyzer . | . . . Garrison Access Hacks . | . . . Unauthorized Hacks 4 | . 4 . Terminals 4 | . 4 . Track 1 | . 1 . Botnet 3 | . 3 . Fabricators . | . . . Repair Stations . | . . . Recycling Units . | . . . Scanalyzers . | . . . Garrison Access . | . . . Data Cores Recovered . | . . . Used . | . . . Hacking Detections 8 | . 8 . Full Trace Events . | . . . Feedback Events . | . . . Feedback Blocked . | . . . Robot Schematics Acquired . | . . . Robots Built . | . . . Authchips . | . . . Time . | . . . Total Robot Build Rating . | . . . Part Schematics Acquired . | . . . Parts Built . | . . . Authchips . | . . . Time . | . . . Total Part Build Rating . | . . . Parts Repaired 3 | . 3 . Time 90 | . 90 . Parts Recycled . | . . . Recycled Matter . | . . . Retrieved Matter . | . . . Retrieved Components . | . . . Parts Scanalyzed . | . . . Part Schematics Acquired . | . . . Parts Damaged . | . . . Bothacking | -11 -10 -10 ------------ Run | Yrd Mat Min Used RIF Installer . | . . . Robots Hacked . | . . . Non-combat . | . . . Combat . | . . . Robot Hacks Applied . | . . . Relay Couplers Released . | . . . Fabnet Peak Effective % . | . . . Robots Rewired . | . . . Allies Hacked . | . . . Hacks Repelled . | . . . Allies | -11 -10 -10 -------- Run | Yrd Mat Min Total Allies . | . . . Largest Group . | . . . Highest-Rated Group . | . . . Highest-Rated Ally . | . . . Total Orders . | . . . Ally Attacks . | . . . Total Damage . | . . . Kills . | . . . Allies Corrupted . | . . . Allies Melted . | . . . Intel | -11 -10 -10 ------- Run | Yrd Mat Min Robot Analysis Total . | . . . Derelict Logs Recovered . | . . . Drone Launches . | . . . Drone Recoveries . | . . . Exploration | -11 -10 -10 ------------- Run | Yrd Mat Min Turns Passed 2371 | 96 1717 558 Spaces Moved 1148 | 57 813 278 Core 6 | 5 . 1 Treads 1142 | 52 813 277 Legs . | . . . Wheels . | . . . Hover . | . . . Flight . | . . . Fastest Speed 50 | 50 160 160 Average Speed 159 | 150 160 161 Slowest Speed 450 | 160 160 450 Overloaded Moves . | . . . Propulsion Burnouts . | . . . Robots Hopped . | . . . Cave-ins Triggered . | . . . Exploration Rate (%) 54 | 6 97 60 Regions Visited 2 Branch Regions 1 Pre-discovered Areas . | . . . Known Exits Taken 1 | . 1 . Unknown Exits Taken 1 | 1 . . Scrap Searched . | . . . Spaces Dug 34 | . . 34 Terrain Destroyed 123 | . 7 116 Melee . | . . . Projectile . | . . . AOE 123 | . 7 116 Terrain Rammed . | . . . Walls Destroyed . | . . . Machines Disabled . | . . . Actions | -11 -10 -10 --------- Run | Yrd Mat Min Total 1534 | 64 1121 349 Wait 253 | . 219 34 Move 1146 | 56 812 278 Hop . | . . . Pick Up 18 | 2 13 3 Fast Attach 9 | 6 3 . Attach 7 | . 2 5 Detach . | . . . Swap 7 | . 6 1 Drop 7 | . 7 . Fire 82 | . 55 27 Melee . | . . . Ram . | . . . Kick . | . . . Crush 5 | . 4 1 Escape Stasis . | . . . Rewire . | . . . Trap . | . . . Miscellaneous . | . . . Route ------- -11/Scrapyard -10/Materials (discovered 4 exits: [*Mat x3] / *Min) -10/Mines (discovered 1 exit: [*Mat]) History --------- Turn | Location | Event 49 | -11/Scrapyard | Discovered new exit (range 14) 97 | -11/Scrapyard | Entered Materials 301 | -10/Materials | Build established: Mutant 586 | -10/Materials | Discovered new exit (range 13) 640 | -10/Materials | Identified exit to Mines 1169 | -10/Materials | Discovered new exit (range 6) 1523 | -10/Materials | Discovered new exit (range 16) 1611 | -10/Materials | Repaired Ion Engine 1650 | -10/Materials | Repaired Imp. Heat Sink 1678 | -10/Materials | Repaired Lgt. Treads 1814 | -10/Materials | Entered Mines 2104 | -10/Mines | Discovered new exit (range 12) 2321 | -10/Mines | Assembled infested the area 2326 | -10/Mines | Assisted by a Guerilla fighting off Assembled 2359 | -10/Mines | Core integrity fell below 50% 2367 | -10/Mines | Core integrity fell below 20% 2372 | -10/Mines | Destroyed by G-34 Mercenary with Small Laser Last Messages --------------- 02349_ as-07209 destroyed. 02350_ Hvy. EM Pulse Gun destroyed. 02351_ Ion Engine destroyed. 02351_ System corrupted by crushing effect (+5). 02351_ Destroyed Asb. F-torch. 02351_ as-69070 destroyed. 02351_ as-76797 destroyed. 02353_ as-43168 destroyed. 02353_ as-11880 destroyed. 02354_ The unstable cave ceiling collapses. 02356_ as-01954 destroyed. 02357_ System corrupted: Heat flow error (+169). 02360_ The unstable cave ceiling collapses. 02360_ Lgt. Treads destroyed. 02362_ as-01669 destroyed. 02364_ Grenade Launcher destroyed. 02368_ Lgt. Treads destroyed. 02369_ The unstable cave ceiling collapses. 02370_ Imp. Heat Sink destroyed. 02372_ Lgt. Ion Engine destroyed. Map ----- +----------------------------------------------------+ | ?????????????????????????????????????????????????? | | ?????????????????????????????????????????????????? | | ?????????????????????????????????????????????????? | | ?????????????????????????????????????????????????? | | ?????????????????????????????????????????????????? | | ?????????????????????????????????????????????????? | | ?????????????????????????????????????????????????# | | ???????????????????????????????????????????####### | | ??????????????????????????????????????????## ## | | ?????????????????????#???????????????????## | | ???????????????????## ???????????????????# | | ?????????????????|## ???????????????????# ## | | ????????????????? ???????????????????# ##? | | ????????????????? " ???????????????????## #?? | | ?????????????????# ????????????????????## ##? | | ?????????????????? ###??????????????????# ## | | ?????????????????? ####???????????????# # | | ??????????????????? % ##???????????????# # | | ????????????????###? a # ###??????????????## # | | ????????????????# ## % #???????????????## | | ????????????????# #?????????????????## | | ???????????????## ##?????????????????## | | ???????????????# g #??????????????????# # | | ???????????????# #??????????????????# # | | ???????????????# ## ########??????????????#*# | | ????????? g @ #??????????????#[# | | ??????? # ###### #??????????????#*# | | ???????? ######## ######????# #??????????????#[# | | ?????????????????# ??????????# #??????????????#%# | | ?????????????????# ???????????#=#??????????????#== | | ????????????????? ????????????# #??????????????### | | ???????????????? ?????????????# #????????????????# | | ???????????????#??????????????# #????????????????# | | ??????????????????????????????# #????????????????# | | ??????????????????????????????# #????????????????? | | ??????????????????????????????# #????????????????? | | ?????????????????????????????## ##???############# | | ????????????????????????????## #??## ## | | ???????????????????????????## #??# # ## | | ???????????????????????????# ##?# # ## | | ???????????????????####????# #### ## | | ??????????????????## ##??# #### ### ### | | ??????????????????# ##?## #?### #?# #?? | | ??????????????????# ##### #???# #?# #?? | | ???????????????????# ##???# ### ### | | ???????????????????## #????# | | ????????????????????## #### #????##### | | ????????????????????## #?## #????????##### | | ?????????############ #??## ##????????????# | | ???????? #????###?????????????# | +----------------------------------------------------+ Best States ------------- Heat Dissipation 39 Energy Generation 10 Energy Capacity 250 Matter Stores 300 Matter Capacity 300 Sight Range 16 Terrain Scan Density 10 Evasion (%) 40 Recoil Reduction 2 Item Schematics ----------------- None Robot Schematics ------------------ None Fabricated ------------ Nothing Alien Tech Used ----------------- None Achievements -------------- None Challenges ------------ None Game ------ Seed GodBombFocus Manual? 0 Play Time 00:18:59 Cumulative 34.0 hours Start 2024.09.12 @ 20:33:23 End 2024.09.12 @ 20:50:14 Sessions 1 Manual Loads 0 Difficulty Rogue Special Mode None Game No. 64 Rogue 64 Adventurer 0 Explorer 0 Win Type - Total 0 Types 0/0/0/0/0/0/0/0/0 Lore% 13 Gallery% 31 Achievement% 28 Wizard Run 0 Options --------- Layout 1 ASCII 0 Keyboard 1 Movement Numpad Keybinds 0 Fullscreen 1 Font 24/Smallcaps Map View 50x35 Zoom Use 0% Tactical HUD 1 Map Filters NONE Filters NONE Steam 1 RUN: afa166db-b0f5-47c3-8a1e-6e45771443e6